fUST/lending_fUST_20250525
["ID","MTS","AMOUNT","RATE_DAILY","PERIOD"]
[362260754,1748124637842,-430.0,0.00022191,2]
[362260755,1748124637852,-430.0,0.00022191,2]
[362260756,1748124637863,-1019.92,0.00022191,2]
[362260757,1748124637874,-1012.65,0.00022191,2]
[362260758,1748124637883,-430.0,0.00022191,2]
[362260759,1748124637892,-430.0,0.00022191,2]
[362260761,1748124637909,-430.0,0.00022191,2]
[362260763,1748124637923,-430.0,0.00022191,2]
[362260764,1748124637937,-430.0,0.00022191,2]
[362260765,1748124637948,-430.0,0.00022191,2]
[362260766,1748124637963,-430.0,0.00022191,2]
[362260767,1748124637975,-430.0,0.00022191,2]
[362260768,1748124637989,-430.0,0.00022191,2]
[362260769,1748124638002,-430.0,0.00022191,2]
[362260770,1748124638015,-702.17,0.00022191,2]
[362260771,1748124638029,-430.0,0.00022191,2]
[362260773,1748124638044,-430.0,0.00022191,2]
[362260775,1748124638057,-430.0,0.00022191,2]
[362260778,1748124638069,-430.0,0.00022191,2]
[362260780,1748124638082,-897.15,0.00022191,2]
[362260782,1748124638096,-430.0,0.00022191,2]
[362260785,1748124638109,-430.0,0.00022191,2]
[362260787,1748124638122,-430.0,0.00022191,2]
[362260789,1748124638132,-430.0,0.00022191,2]
[362260791,1748124638145,-855.85,0.00022191,2]
[362260794,1748124638156,-430.0,0.00022191,2]
[362260796,1748124638169,-696.98,0.00022191,2]
[362260798,1748124638184,-430.0,0.00022191,2]
[362260801,1748124638196,-430.0,0.00022191,2]
[362260803,1748124638210,-430.0,0.00022191,2]
[362260806,1748124638224,-430.0,0.00022191,2]
[362260808,1748124638239,-1572.38,0.00022191,2]
[362260810,1748124638250,-2380.15,0.00022191,2]
[362260812,1748124638264,-430.0,0.00022191,2]
[362260814,1748124638275,-430.0,0.00022191,2]
[362260817,1748124638290,-460.0,0.00022191,2]
[362260819,1748124638306,-430.0,0.00022191,2]
[362260821,1748124638321,-500.0,0.00022227,2]
[362260823,1748124638337,-500.0,0.0002225,2]
[362260826,1748124638351,-500.0,0.0002225,2]
[362260828,1748124638365,-420.0,0.00022292,2]
[362260830,1748124638377,-420.0,0.00022292,2]
[362260832,1748124638388,-500.0,0.00022316,2]
[362260834,1748124638399,-500.0,0.00022316,2]
[362260837,1748124638411,-500.0,0.00022316,2]
[362260839,1748124638423,-500.0,0.00022316,2]
[362260841,1748124638434,-500.0,0.00022316,2]
[362260843,1748124638446,-500.0,0.00022316,2]
[362260845,1748124638457,-500.0,0.00022316,2]
[362260848,1748124638470,-497.2540624,0.00022388,2]
[362260850,1748124638481,-595.95659499,0.00022397,2]
[362260852,1748124638492,-500.0,0.000224,2]
[362260854,1748124638504,-720.0,0.00022425,3]
[362260857,1748124638516,-720.0,0.00022425,3]
[362260859,1748124638528,-720.0,0.00022425,3]
[362260861,1748124638539,-666.70146724,0.00022425,3]
[362260863,1748124638551,-155.0,0.00022464,2]
[362260866,1748124638563,-151.0,0.00022465,7]
[362260868,1748124638575,-430.0,0.00022465,2]
[362260870,1748124638587,-500.0,0.00022465,2]
[362260872,1748124638599,-430.0,0.00022465,2]
[362260875,1748124638611,-430.0,0.00022465,2]
[362260877,1748124638623,-430.0,0.00022465,2]
[362260879,1748124638635,-430.0,0.00022465,2]
[362260881,1748124638646,-423.32042511,0.00022465,2]
[362260884,1748124638658,-430.0,0.00022465,2]
[362260886,1748124638669,-430.0,0.00022465,2]
[362260888,1748124638681,-400.0,0.00022465,2]
[362260890,1748124638693,-430.0,0.00022465,2]
[362260893,1748124638705,-460.0,0.00022465,2]
[362260895,1748124638716,-430.0,0.00022465,2]
[362260897,1748124638728,-430.0,0.00022465,2]
[362260899,1748124638740,-430.0,0.00022465,2]
[362260902,1748124638752,-430.0,0.00022465,2]
[362260904,1748124638763,-430.0,0.00022465,2]
[362260906,1748124638776,-430.0,0.00022465,2]
[362260908,1748124638788,-430.0,0.00022465,2]
[362260911,1748124638799,-430.0,0.00022465,2]
[362260913,1748124638811,-410.41959643,0.00022465,2]
[362260915,1748124638822,-430.0,0.00022465,2]
[362260917,1748124638834,-470.0,0.00022465,2]
[362260920,1748124638845,-430.0,0.00022465,2]
[362260922,1748124638856,-430.0,0.00022465,2]
[362260924,1748124638868,-307.45737174,0.00022465,2]
[362260926,1748124638880,-430.0,0.00022465,2]
[362260928,1748124638891,-215.09622858,0.00022465,2]
[362260930,1748124638903,-430.0,0.00022465,2]
[362260932,1748124638915,-430.0,0.00022465,2]
[362260935,1748124638927,-430.0,0.00022465,2]
[362260937,1748124638939,-430.0,0.00022465,2]
[362260939,1748124638951,-430.0,0.00022465,2]
[362260941,1748124638962,-430.0,0.00022465,2]
[362260943,1748124638971,-430.0,0.00022465,2]
[362260960,1748124639117,-430.0,0.00022465,2]
[362260962,1748124639135,-430.0,0.00022465,2]
[362260964,1748124639145,-459.65184117,0.00022465,2]
[362260966,1748124639155,-430.0,0.00022465,2]
[362260968,1748124639164,-430.0,0.00022465,2]
[362260970,1748124639173,-430.0,0.00022465,2]
[362260972,1748124639183,-430.0,0.00022465,2]
[362260974,1748124639192,-430.0,0.00022465,2]
[362260976,1748124639201,-430.0,0.00022465,2]
[362260978,1748124639210,-430.0,0.00022465,2]
[362260980,1748124639220,-430.0,0.00022465,2]
[362260982,1748124639229,-295.77784237,0.00022465,2]
[362260999,1748124639385,-134.22215763,0.00022465,2]
[362261001,1748124639394,-430.0,0.00022465,2]
[362261003,1748124639403,-430.0,0.00022465,2]
[362261005,1748124639412,-430.0,0.00022465,2]
[362261007,1748124639421,-430.0,0.00022465,2]
[362261009,1748124639431,-430.0,0.00022465,2]
[362261010,1748124639439,-430.0,0.00022465,2]
[362261012,1748124639449,-430.0,0.00022465,2]
[362261014,1748124639458,-430.0,0.00022465,2]
[362261016,1748124639468,-430.0,0.00022465,2]
[362261018,1748124639477,-430.0,0.00022465,2]
[362261020,1748124639486,-430.0,0.00022465,2]
[362261022,1748124639495,-430.0,0.00022465,2]
[362261024,1748124639505,-500.0,0.00022465,2]
[362261026,1748124639514,-430.0,0.00022465,2]
[362261028,1748124639523,-430.0,0.00022465,2]
[362261030,1748124639531,-430.0,0.00022465,2]
[362261032,1748124639541,-430.0,0.00022465,2]
[362261033,1748124639550,-430.0,0.00022465,2]
[362261035,1748124639560,-430.0,0.00022465,2]
[362261037,1748124639569,-430.0,0.00022465,2]
[362261039,1748124639579,-430.0,0.00022465,2]
[362261041,1748124639588,-430.0,0.00022465,2]
[362261043,1748124639596,-430.0,0.00022465,2]
[362261044,1748124639606,-430.0,0.00022465,2]
[362261045,1748124639615,-430.0,0.00022465,2]
[362261046,1748124639626,-430.0,0.00022465,2]
[362261047,1748124639637,-430.0,0.00022465,2]
[362261048,1748124639646,-430.0,0.00022465,2]
[362261049,1748124639657,-397.13463461,0.00022465,2]
[362261050,1748124639667,-151.93960081,0.00022465,2]
[362261051,1748124639677,-430.0,0.00022465,2]
[362261052,1748124639686,-151.0,0.00022465,2]
[362261053,1748124639695,-430.0,0.00022465,2]
[362261054,1748124639705,-430.0,0.00022465,2]
[362261055,1748124639715,-430.0,0.00022465,2]
[362261056,1748124639726,-340.0,0.00022465,2]
[362261057,1748124639737,-430.0,0.00022465,2]
[362261058,1748124639748,-430.0,0.00022465,2]
[362261059,1748124639758,-430.0,0.00022465,2]
[362261060,1748124639768,-591.33,0.00022465,2]
[362261061,1748124639779,-618.03591607,0.00022465,2]
[362261062,1748124639788,-430.0,0.00022465,2]
[362261063,1748124639798,-430.0,0.00022465,2]
[362261064,1748124639807,-430.0,0.00022465,2]
[362261065,1748124639817,-430.0,0.00022465,2]
[362261066,1748124639827,-430.0,0.00022465,2]
[362261068,1748124639836,-519.85,0.00022465,2]
[362261070,1748124639846,-430.0,0.00022465,2]
[362261072,1748124639856,-607.29,0.00022465,2]
[362261074,1748124639865,-430.0,0.00022465,2]
[362261075,1748124639875,-430.0,0.00022465,2]
[362261077,1748124639885,-430.0,0.00022465,2]
[362261079,1748124639894,-430.0,0.00022465,2]
[362261081,1748124639904,-430.0,0.00022465,2]
[362261082,1748124639913,-563.63674268,0.00022465,2]
[362261083,1748124639922,-430.0,0.00022465,2]
[362261084,1748124639931,-430.0,0.00022465,2]
[362261085,1748124639940,-430.0,0.00022465,2]
[362261086,1748124639949,-430.0,0.00022465,2]
[362261087,1748124639958,-430.0,0.00022465,2]
[362261088,1748124639967,-505.93,0.00022465,2]
[362261089,1748124639976,-430.0,0.00022465,2]
[362261090,1748124639986,-503.49,0.00022465,2]
[362261091,1748124639995,-430.0,0.00022465,2]
[362261093,1748124640004,-430.0,0.00022465,2]
[362261094,1748124640013,-368.58,0.00022465,2]
[362261095,1748124640022,-430.0,0.00022465,2]
[362261096,1748124640031,-430.0,0.00022465,2]
[362261097,1748124640041,-430.0,0.00022465,2]
[362261098,1748124640051,-975.69,0.00022465,2]
[362261100,1748124640060,-430.0,0.00022465,2]
[362261102,1748124640069,-430.0,0.00022465,2]
[362261104,1748124640079,-430.0,0.00022465,2]
[362261105,1748124640087,-3586.89,0.00022465,2]
[362261106,1748124640096,-430.0,0.00022465,2]
[362261107,1748124640105,-430.0,0.00022465,2]
[362261108,1748124640114,-430.0,0.00022465,2]
[362261109,1748124640123,-430.0,0.00022465,2]
[362261110,1748124640132,-553.43,0.00022465,2]
[362261111,1748124640141,-430.0,0.00022465,2]
[362261112,1748124640151,-238.14929117,0.00022465,2]
[362261113,1748124640160,-442.23,0.00022465,2]
[362261114,1748124640169,-456.49,0.00022465,2]
[362261115,1748124640178,-430.0,0.00022465,2]
[362261116,1748124640187,-455.63,0.00022465,2]
[362261117,1748124640197,-430.0,0.00022465,2]
[362261118,1748124640206,-430.0,0.00022465,2]
[362261119,1748124640217,-830.82,0.00022465,2]
[362261120,1748124640226,-430.0,0.00022465,2]
[362261121,1748124640236,-430.0,0.00022465,2]
[362261122,1748124640246,-202.25844325,0.00022465,2]
[362261123,1748124640260,-1562.88,0.00022465,2]
[362261124,1748124640271,-430.0,0.00022465,2]
[362261125,1748124640281,-430.0,0.00022465,2]
[362261126,1748124640291,-430.0,0.00022465,2]
[362261127,1748124640302,-450.0,0.00022465,2]
[362261128,1748124640313,-430.0,0.00022465,2]
[362261129,1748124640322,-430.0,0.00022465,2]
[362261130,1748124640332,-430.0,0.00022465,2]
[362261131,1748124640342,-2284.03,0.00022465,2]
[362261132,1748124640352,-430.0,0.00022465,2]
[362261134,1748124640362,-430.0,0.00022465,2]
[362261136,1748124640371,-430.0,0.00022465,2]
[362261138,1748124640381,-430.0,0.00022465,2]
[362261140,1748124640390,-1019.92,0.00022465,2]
[362261142,1748124640400,-1012.65,0.00022465,2]
[362261143,1748124640409,-430.0,0.00022465,2]
[362261145,1748124640419,-430.0,0.00022465,2]
[362261146,1748124640428,-430.0,0.00022465,2]
[362261148,1748124640438,-430.0,0.00022465,2]
[362261150,1748124640447,-430.0,0.00022465,2]
[362261151,1748124640457,-430.0,0.00022465,2]
[362261152,1748124640467,-489.30605409,0.00022465,2]
[362261153,1748124640476,-430.0,0.00022465,2]
[362261154,1748124640486,-430.0,0.00022465,2]
[362261155,1748124640495,-430.0,0.00022465,2]
[362261156,1748124640504,-702.17,0.00022465,2]
[362261157,1748124640514,-430.0,0.00022465,2]
[362261158,1748124640523,-430.0,0.00022465,2]
[362261159,1748124640534,-430.0,0.00022465,2]
[362261160,1748124640544,-430.0,0.00022465,2]
[362261161,1748124640554,-897.15,0.00022465,2]
[362261162,1748124640563,-430.0,0.00022465,2]
[362261163,1748124640573,-430.0,0.00022465,2]
[362261164,1748124640582,-430.0,0.00022465,2]
[362261165,1748124640593,-430.0,0.00022465,2]
[362261166,1748124640603,-855.85,0.00022465,2]
[362261167,1748124640612,-430.0,0.00022465,2]
[362261168,1748124640622,-696.98,0.00022465,2]
[362261169,1748124640632,-430.0,0.00022465,2]
[362261170,1748124640642,-430.0,0.00022465,2]
[362261171,1748124640652,-430.0,0.00022465,2]
[362261172,1748124640661,-430.0,0.00022465,2]
[362261173,1748124640670,-1572.38,0.00022465,2]
[362261174,1748124640680,-2380.15,0.00022465,2]
[362261175,1748124640689,-430.0,0.00022465,2]
[362261176,1748124640699,-430.0,0.00022465,2]
[362261177,1748124640708,-500.0,0.00022493,2]
[362261178,1748124640718,-500.0,0.00022493,2]
[362261179,1748124640728,-491.29289313,0.00022503,2]
[362261180,1748124640737,-166.587049,0.00022505,2]
[362261181,1748124640746,-160.0,0.00022508,2]
[362261182,1748124640756,-894.64583333,0.00022509,2]
[362261183,1748124640766,-212.4501065,0.00022509,2]
[362261184,1748124640775,-422.929492,0.00022509,2]
[362261185,1748124640786,-160.0,0.00022509,2]
[362261186,1748124640796,-160.0,0.00022509,2]
[362261187,1748124640805,-229.12393663,0.00022509,2]
[362261188,1748124640815,-314.61239117,0.00022509,2]
[362261189,1748124640824,-12649.97184255,0.00022509,2]
[362261190,1748124640833,-153.0,0.00022548,2]
[362261191,1748124640843,-158.2393474,0.00022548,2]
[362261192,1748124640852,-571.5253022,0.00022548,2]
[362261193,1748124640862,-176.1579227,0.00022548,2]
[362261195,1748124640871,-158.2393474,0.00022548,2]
[362261197,1748124640880,-176.1579227,0.00022548,2]
[362261198,1748124640889,-571.5253022,0.00022548,2]
[362261199,1748124640899,-176.1579227,0.00022548,2]
[362261200,1748124640908,-571.5253022,0.00022548,2]
[362261201,1748124640917,-157.3477116,0.00022548,2]
[362261202,1748124640926,-175.8126591,0.00022548,2]
[362261203,1748124640935,-571.5253022,0.00022548,2]
[362261204,1748124640944,-563.9981722,0.00022548,2]
[362261205,1748124640953,-236.535339,0.00022681,2]
[362261206,1748124640962,-153.0,0.00022681,2]
[362261207,1748124640971,-176.1579227,0.00022681,2]
[362261208,1748124640981,-176.1579227,0.00022681,2]
[362261209,1748124640990,-777.3677384,0.00022681,2]
[362261210,1748124640999,-175.1897912,0.00022681,2]
[362261211,1748124641009,-485.37,0.00022739,2]
[362261212,1748124641019,-430.0,0.00022739,2]
[362261213,1748124641028,-430.0,0.00022739,2]
[362261214,1748124641037,-430.0,0.00022739,2]
[362261215,1748124641047,-430.0,0.00022739,2]
[362261216,1748124641056,-430.0,0.00022739,2]
[362261217,1748124641066,-572.96,0.00022739,2]
[362261218,1748124641075,-430.0,0.00022739,2]
[362261219,1748124641085,-430.0,0.00022739,2]
[362261220,1748124641094,-430.0,0.00022739,2]
[362261221,1748124641103,-430.0,0.00022739,2]
[362261222,1748124641113,-450.0,0.00022739,2]
[362261223,1748124641123,-478.73125267,0.00022739,2]
[362261224,1748124641132,-250.05,0.00022739,2]
[362261225,1748124641142,-430.0,0.00022739,2]
[362261226,1748124641152,-430.0,0.00022739,2]
[362261227,1748124641161,-430.0,0.00022739,2]
[362261228,1748124641170,-430.0,0.00022739,2]
[362261229,1748124641180,-430.0,0.00022739,2]
[362261230,1748124641190,-430.0,0.00022739,2]
[362261231,1748124641199,-430.0,0.00022739,2]
[362261232,1748124641209,-301.28,0.00022739,2]
[362261233,1748124641219,-430.0,0.00022739,2]
[362261234,1748124641340,-430.0,0.00022739,2]
[362261235,1748124641350,-430.0,0.00022739,2]
[362261236,1748124641360,-287.8,0.00022739,2]
[362261237,1748124641369,-430.0,0.00022739,2]
[362261238,1748124641379,-430.0,0.00022739,2]
[362261239,1748124641388,-430.0,0.00022739,2]
[362261240,1748124641397,-430.0,0.00022739,2]
[362261241,1748124641406,-430.0,0.00022739,2]
[362261242,1748124641416,-430.0,0.00022739,2]
[362261243,1748124641425,-430.0,0.00022739,2]
[362261244,1748124641435,-433.89,0.00022739,2]
[362261245,1748124641445,-430.0,0.00022739,2]
[362261246,1748124641454,-510.0,0.00022739,2]
[362261247,1748124641464,-430.0,0.00022739,2]
[362261248,1748124641473,-430.0,0.00022739,2]
[362261249,1748124641482,-430.0,0.00022739,2]
[362261250,1748124641493,-591.33,0.00022739,2]
[362261251,1748124641502,-430.0,0.00022739,2]
[362261252,1748124641511,-430.0,0.00022739,2]
[362261253,1748124641521,-519.85,0.00022739,2]
[362261254,1748124641531,-430.0,0.00022739,2]
[362261255,1748124641540,-607.29,0.00022739,2]
[362261256,1748124641550,-430.0,0.00022739,2]
[362261257,1748124641559,-430.0,0.00022739,2]
[362261258,1748124641569,-430.0,0.00022739,2]
[362261259,1748124641579,-430.0,0.00022739,2]
[362261260,1748124641588,-430.0,0.00022739,2]
[362261261,1748124641598,-505.93,0.00022739,2]
[362261262,1748124641607,-503.49,0.00022739,2]
[362261263,1748124641616,-430.0,0.00022739,2]
[362261264,1748124641626,-379.38,0.00022739,2]
[362261265,1748124641636,-975.69,0.00022739,2]
[362261266,1748124641646,-430.0,0.00022739,2]
[362261267,1748124641655,-430.0,0.00022739,2]
[362261268,1748124641665,-430.0,0.00022739,2]
[362261269,1748124641674,-3586.89,0.00022739,2]
[362261270,1748124641684,-430.0,0.00022739,2]
[362261271,1748124641693,-430.0,0.00022739,2]
[362261272,1748124641703,-553.43,0.00022739,2]
[362261273,1748124641712,-430.0,0.00022739,2]
[362261274,1748124641722,-442.23,0.00022739,2]
[362261275,1748124641731,-456.49,0.00022739,2]
[362261276,1748124641740,-430.0,0.00022739,2]
[362261277,1748124641750,-455.63,0.00022739,2]
[362261278,1748124641760,-217.59,0.00022739,2]
[362261279,1748124641770,-830.82,0.00022739,2]
[362261280,1748124641780,-1562.88,0.00022739,2]
[362261281,1748124641790,-430.0,0.00022739,2]
[362261282,1748124641800,-430.0,0.00022739,2]
[362261283,1748124641809,-456.41,0.00022739,2]
[362261284,1748124641819,-2284.03,0.00022739,2]
[362261285,1748124641828,-430.0,0.00022739,2]
[362261286,1748124641837,-430.0,0.00022739,2]
[362261287,1748124641847,-430.0,0.00022739,2]
[362261288,1748124641857,-1019.92,0.00022739,2]
[362261289,1748124641867,-1012.65,0.00022739,2]
[362261290,1748124641882,-151.0,0.00022739,7]
[362261291,1748124641891,-151.0,0.00022739,7]
[362261292,1748124641901,-430.0,0.00022739,2]
[362261293,1748124641910,-209.04,0.00022739,2]
[362261294,1748124641920,-430.0,0.00022739,2]
[362261295,1748124641930,-430.0,0.00022739,2]
[362261296,1748124641939,-430.0,0.00022739,2]
[362261297,1748124641949,-702.17,0.00022739,2]
[362261298,1748124641958,-430.0,0.00022739,2]
[362261299,1748124641967,-430.0,0.00022739,2]
[362261300,1748124641977,-430.0,0.00022739,2]
[362261301,1748124641987,-430.0,0.00022739,2]
[362261302,1748124641996,-897.15,0.00022739,2]
[362261303,1748124642006,-430.0,0.00022739,2]
[362261304,1748124642015,-189.36,0.00022739,2]
[362261305,1748124642024,-430.0,0.00022739,2]
[362261306,1748124642034,-855.85,0.00022739,2]
[362261307,1748124642044,-430.0,0.00022739,2]
[362261308,1748124642053,-696.98,0.00022739,2]
[362261309,1748124642062,-430.0,0.00022739,2]
[362261310,1748124642072,-430.0,0.00022739,2]
[362261311,1748124642081,-1572.38,0.00022739,2]
[362261312,1748124642091,-2380.15,0.00022739,2]
[362261313,1748124642101,-151.0,0.000228,6]
[362261314,1748124642111,-985.0,0.000229,2]
[362261315,1748124642121,-314.61239117,0.00022913,3]
[362261316,1748124642131,-151.0,0.00023,9]
[362261317,1748124642140,-160.0,0.00023,3]
[362261318,1748124642150,-160.0,0.00023,3]
[362261319,1748124642159,-422.929492,0.00023,3]
[362261320,1748124642169,-229.12393663,0.00023,3]
[362261321,1748124642179,-151.0,0.00023013,7]
[362261322,1748124642188,-181.68,0.00023013,2]
[362261323,1748124642198,-324.45532392,0.00023013,2]
[362261324,1748124642208,-430.0,0.00023013,2]
[362261325,1748124642217,-430.0,0.00023013,2]
[362261326,1748124642230,-430.0,0.00023013,2]
[362261327,1748124642240,-430.0,0.00023013,2]
[362261328,1748124642250,-430.0,0.00023013,2]
[362261329,1748124642262,-430.0,0.00023013,2]
[362261330,1748124642271,-430.0,0.00023013,2]
[362261331,1748124642281,-430.0,0.00023013,2]
[362261332,1748124642291,-191.37341072,0.00023013,2]
[362261333,1748124642302,-430.0,0.00023013,2]
[362261334,1748124642311,-151.0,0.00023013,2]
[362261335,1748124642321,-166.45,0.00023013,2]
[362261336,1748124642330,-430.0,0.00023013,2]
[362261337,1748124642342,-591.33,0.00023013,2]
[362261338,1748124642352,-430.0,0.00023013,2]
[362261339,1748124642363,-519.85,0.00023013,2]
[362261340,1748124642372,-430.0,0.00023013,2]
[362261341,1748124642382,-607.29,0.00023013,2]
[362261342,1748124642391,-430.0,0.00023013,2]
[362261343,1748124642401,-430.0,0.00023013,2]
[362261344,1748124642412,-430.0,0.00023013,2]
[362261345,1748124642421,-430.0,0.00023013,2]
[362261346,1748124642431,-529.73102999,0.00023013,2]
[362261347,1748124642440,-505.93,0.00023013,2]
[362261348,1748124642450,-503.49,0.00023013,2]
[362261349,1748124642459,-430.0,0.00023013,2]
[362261350,1748124642469,-975.69,0.00023013,2]
[362261351,1748124642479,-430.0,0.00023013,2]
[362261352,1748124642489,-430.0,0.00023013,2]
[362261353,1748124642498,-3586.89,0.00023013,2]
[362261354,1748124642508,-430.0,0.00023013,2]
[362261355,1748124642517,-430.0,0.00023013,2]
[362261356,1748124642527,-553.43,0.00023013,2]
[362261357,1748124642537,-430.0,0.00023013,2]
[362261358,1748124642547,-442.23,0.00023013,2]
[362261359,1748124642556,-456.49,0.00023013,2]
[362261360,1748124642565,-236.9,0.00023013,2]
[362261361,1748124642575,-455.63,0.00023013,2]
[362261362,1748124642584,-830.82,0.00023013,2]
[362261363,1748124642596,-1562.88,0.00023013,2]
[362261364,1748124642607,-2284.03,0.00023013,2]
[362261365,1748124642616,-430.0,0.00023013,2]
[362261366,1748124642632,-430.0,0.00023013,2]
[362261367,1748124642644,-430.0,0.00023013,2]
[362261368,1748124642654,-1019.92,0.00023013,2]
[362261369,1748124642666,-1012.65,0.00023013,2]
[362261370,1748124642675,-430.0,0.00023013,2]
[362261371,1748124642684,-430.0,0.00023013,2]
[362261372,1748124642693,-430.0,0.00023013,2]
[362261373,1748124642703,-430.0,0.00023013,2]
[362261374,1748124642712,-702.17,0.00023013,2]
[362261375,1748124642721,-525.62,0.00023013,2]
[362261376,1748124642730,-430.0,0.00023013,2]
[362261377,1748124642740,-430.0,0.00023013,2]
[362261378,1748124642750,-897.15,0.00023013,2]
[362261379,1748124642759,-430.0,0.00023013,2]
[362261380,1748124642769,-270.21,0.00023013,2]
[362261381,1748124642779,-855.85,0.00023013,2]
[362261382,1748124642789,-430.0,0.00023013,2]
[362261383,1748124642798,-696.98,0.00023013,2]
[362261384,1748124642807,-430.0,0.00023013,2]
[362261385,1748124642817,-430.0,0.00023013,2]
[362261387,1748124642826,-1572.38,0.00023013,2]
[362261388,1748124642835,-2380.15,0.00023013,2]
[362261389,1748124642845,-800.0,0.0002316,2]
[362261390,1748124642858,-160.0,0.00023212,3]
[362261391,1748124642868,-960.0,0.00023277,2]
[362261392,1748124642879,-2236.0,0.00023277,2]
[362261393,1748124642889,-707.0,0.00023277,2]
[362261394,1748124642899,-151.674346,0.00023287,7]
[362261395,1748124642908,-430.0,0.00023287,2]
[362261396,1748124642917,-430.0,0.00023287,2]
[362261397,1748124642927,-151.0,0.00023287,7]
[362261398,1748124642937,-430.0,0.00023287,2]
[362261399,1748124642947,-151.0,0.00023287,7]
[362261400,1748124642956,-151.0,0.00023287,7]
[362261401,1748124642966,-151.0,0.00023287,7]
[362261402,1748124642975,-430.0,0.00023287,2]
[362261403,1748124642985,-430.0,0.00023287,2]
[362261405,1748124642995,-430.0,0.00023287,2]
[362261406,1748124643005,-191.92,0.00023287,2]
[362261407,1748124643017,-591.33,0.00023287,2]
[362261408,1748124643028,-430.0,0.00023287,2]
[362261409,1748124643038,-519.85,0.00023287,2]
[362261410,1748124643047,-430.0,0.00023287,2]
[362261411,1748124643056,-607.29,0.00023287,2]
[362261412,1748124643065,-431.8,0.00023287,2]
[362261413,1748124643075,-430.0,0.00023287,2]
[362261414,1748124643086,-185.51143248,0.00023287,2]
[362261415,1748124643096,-430.0,0.00023287,2]
[362261416,1748124643106,-505.93,0.00023287,2]
[362261417,1748124643115,-503.49,0.00023287,2]
[362261418,1748124643126,-430.0,0.00023287,2]
[362261419,1748124643136,-975.69,0.00023287,2]
[362261420,1748124643148,-430.0,0.00023287,2]
[362261421,1748124643158,-3586.89,0.00023287,2]
[362261422,1748124643167,-166.39,0.00023287,2]
[362261423,1748124643177,-430.0,0.00023287,2]
[362261424,1748124643186,-553.43,0.00023287,2]
[362261425,1748124643196,-430.0,0.00023287,2]
[362261426,1748124643206,-442.23,0.00023287,2]
[362261428,1748124643215,-456.49,0.00023287,2]
[362261429,1748124643226,-455.63,0.00023287,2]
[362261430,1748124643235,-830.82,0.00023287,2]
[362261431,1748124643245,-1562.88,0.00023287,2]
[362261432,1748124643259,-2284.03,0.00023287,2]
[362261433,1748124643268,-430.0,0.00023287,2]
[362261434,1748124643279,-430.0,0.00023287,2]
[362261435,1748124643288,-1019.92,0.00023287,2]
[362261436,1748124643298,-1012.65,0.00023287,2]
[362261437,1748124643308,-430.0,0.00023287,2]
[362261438,1748124643316,-430.0,0.00023287,2]